[Event "WJCC U20 Girls 2019"]
[Site "New Delhi"]
[Date "2019.10.15"]
[Round "1.12"]
[White "Chandreyee, Hajra"]
[Black "Munkhzul, Turmunkh"]
[Result "0-1"]
[ECO "B92"]
[WhiteElo "2024"]
[BlackElo "2332"]
[Annotator "NA RC"]
[PlyCount "104"]
[EventDate "2019.10.15"]
[EventType "swiss"]
[EventCountry "IND"]
[SourceTitle "playchess.com"]
[Source "ChessBase"]
[SourceQuality "1"]
[TimeControl "40/5400+30:1800+30"]

1. e4 {[%emt 0:00:00]} c5 {[%emt 0:00:00]} 2. Nf3 {[%emt 0:00:00]} d6 {[%emt 0:00:21]} 3. d4 {[%emt 0:00:00]} cxd4 {[%emt 0:00:17]} 4. Nxd4 {[%emt 0:00:00]} Nf6 {[%emt 0:00:37]} 5. Nc3 {[%emt 0:00:07]} a6 {[%emt 0:00:38]} 6. Be2 {[%emt 0:00:19]} e5 {[%emt 0:00:18]} 7. Nb3 {[%emt 0:00:07]} Be7 {[%emt 0:00:16]} 8. O-O {[%emt 0:00:12]} O-O {[%emt 0:00:50]} 9. Kh1 {[%emt 0:00:26]} b6 {[%emt 0:00:26]} 10. f3 {[%emt 0:02:37]} Bb7 {[%emt 0:00:28]} 11. Be3 {[%emt 0:00:19]} b5 {[%emt 0:00:19]} 12. a4 {[%emt 0:06:28]} b4 {[%emt 0:01:23]} 13. Nd5 {[%emt 0:00:58]} Nxd5 {[%emt 0:00:36]} 14. exd5 {[%emt 0:00:21]} Nd7 {[%emt 0:01:04]} 15. c3 {[%emt 0:04:34]} bxc3 {[%emt 0:01:23]} 16. bxc3 {[%emt 0:00:09]} Bg5 {[%emt 0:00:25]} 17. Bxg5 {[%emt 0:03:07]} Qxg5 {[%emt 0:00:16]} 18. Na5 {[%emt 0:04:34]} Nc5 {[%emt 0:05:54]} 19. Rb1 {[%emt 0:06:49]} Qe7 {[%emt 0:05:01]} 20. Rb4 {[%emt 0:07:11]} f5 {[%emt 0:09:06]} 21. Qd2 {[%emt 0:08:11]} f4 {[%emt 0:07:02]} 22. Bd3 {[%emt 0:08:49]} Bc8 {[%emt 0:15:05]} 23. Bc2 {[%emt 0:04:58]} g5 {[%emt 0:10:55]} 24. h3 {[%emt 0:05:00]} h5 {[%emt 0:11:52]} 25. Bg6 {[%emt 0:05:06]} Qg7 {[%emt 0:00:36]} 26. Qc2 {[%emt 0:07:23]} Rf6 {[%emt 0:08:46]} 27. Bxh5 {[%emt 0:00:18]} Bf5 {[%emt 0:00:25]} 28. Qb2 {[%emt 0:03:01]} e4 {[%emt 0:02:35]} 29. fxe4 {[%emt 0:11:25]} Nxe4 {[%emt 0:01:13]} 30. Rb7 {[%emt 0:00:09]} Qh6 {[%emt 0:01:03]} 31. Bf7+ {[%emt 0:02:18]} Kf8 {[%emt 0:06:34]} 32. Kg1 {[%emt 0:01:11]} Nc5 {[%emt 0:01:44]} 33. Be6 {[%emt 0:02:59]} Nxb7 {[%emt 0:00:33]} 34. Qxb7 {[%emt 0:00:49]} Re8 {[%emt 0:00:19]} 35. Qxa6 {[%emt 0:00:48]} Bxe6 {[%emt 0:02:32]} 36. Qxd6+ {[%emt 0:00:08]} Kg7 {[%emt 0:00:22]} 37. dxe6 {[%emt 0:00:11]} Rfxe6 {[%emt 0:00:07]} 38. Qd7+ {[%emt 0:01:37]} R8e7 {[%emt 0:00:17]} 39. Qd4+ {[%emt 0:00:08]} Qf6 {[%emt 0:00:43]} 40. Nb3 {[%emt 0:02:07]} Rd6 {[%emt 0:02:04]} 41. Qxf6+ {[%emt 0:32:27]} Kxf6 {[%emt 0:31:15]} 42. a5 {[%emt 0:01:08]} Rc7 {[%emt 0:02:32]} 43. Nd4 {[%emt 0:00:00]} Ra6 {[%emt 0:00:00]} 44. g3 {[%emt 0:00:00]} Ke5 {[%emt 0:00:00]} 45. Re1+ {[%emt 0:00:00]} Kd5 {[%emt 0:00:00]} 46. gxf4 {[%emt 0:00:00]} gxf4 {[%emt 0:00:00]} 47. Ne2 {[%emt 0:00:00]} Rc4 {[%emt 0:00:00]} 48. Ra1 {[%emt 0:00:00]} f3 {[%emt 0:00:00]} 49. Ng3 {[%emt 0:00:00]} Rxc3 {[%emt 0:00:00]} 50. Kf2 {[%emt 0:00:00]} Rc2+ {[%emt 0:00:00]} 51. Kxf3 {[%emt 0:00:00]} Rf6+ {[%emt 0:00:00]} 52. Kg4 {[%emt 0:00:00]} Rg6+ {[%emt 0:00:00]} 0-1

[Event "WJCC U20 Girls 2019"]
[Site "New Delhi"]
[Date "2019.10.15"]
[Round "1.13"]
[White "Antova, Gabriela"]
[Black "Mirza, Diana"]
[Result "*"]
[ECO "A50"]
[WhiteElo "2318"]
[BlackElo "1986"]
[Annotator "NA"]
[PlyCount "74"]
[EventDate "2019.10.15"]
[EventType "swiss"]
[EventCountry "IND"]
[SourceTitle "playchess.com"]
[Source "ChessBase"]
[SourceQuality "1"]
[TimeControl "40/5400+30:1800+30"]

1. d4 {[%emt 0:00:00]} Nf6 {[%emt 0:00:00]} 2. c4 {[%emt 0:00:00]} b6 {[%emt 0:00:00]} 3. Nf3 {[%emt 0:01:54]} Bb7 {[%emt 0:00:00]} 4. Nc3 {[%emt 0:02:23]} Ne4 {[%emt 0:00:34]} 5. Nxe4 {[%emt 0:04:56]} Bxe4 {[%emt 0:00:07]} 6. e3 {[%emt 0:01:31]} g6 {[%emt 0:04:57]} 7. Bd3 {[%emt 0:04:44]} Bb7 {[%emt 0:00:35]} 8. e4 {[%emt 0:13:02]} Bg7 {[%emt 0:00:18]} 9. Be3 {[%emt 0:01:13]} c5 {[%emt 0:01:18]} 10. O-O {[%emt 0:04:42]} cxd4 {[%emt 0:12:14]} 11. Bxd4 {[%emt 0:02:49]} O-O {[%emt 0:01:24]} 12. Bxg7 {[%emt 0:02:08]} Kxg7 {[%emt 0:00:08]} 13. Qd2 {[%emt 0:03:21]} d6 {[%emt 0:02:13]} 14. Rfe1 {[%emt 0:04:01]} Nd7 {[%emt 0:01:00]} 15. Rad1 {[%emt 0:01:58]} Qc7 {[%emt 0:12:41]} 16. b3 {[%emt 0:03:28]} Rad8 {[%emt 0:12:01]} 17. Nd4 {[%emt 0:05:17]} Ne5 {[%emt 0:08:11]} 18. Bb1 {[%emt 0:06:29]} Qd7 {[%emt 0:05:29]} 19. Qg5 {[%emt 0:03:29]} h6 {[%emt 0:06:26]} 20. Qg3 {[%emt 0:03:09]} Qg4 {[%emt 0:01:25]} 21. Qe3 {[%emt 0:02:12]} Nc6 {[%emt 0:06:53]} 22. h3 {[%emt 0:03:09]} Qg5 {[%emt 0:03:55]} 23. Nc2 {[%emt 0:07:00]} Qf6 {[%emt 0:08:30]} 24. Qd2 {[%emt 0:04:03]} Ne5 {[%emt 0:02:52]} 25. f4 {[%emt 0:01:42]} Nc6 {[%emt 0:00:56]} 26. Ne3 {[%emt 0:00:31]} e6 {[%emt 0:01:34]} 27. Ng4 {[%emt 0:02:19]} Qh4 {[%emt 0:01:29]} 28. Qb2+ {[%emt 0:06:27]} f6 {[%emt 0:01:08]} 29. Kh2 {[%emt 0:00:12]} g5 {[%emt 0:01:21]} 30. g3 {[%emt 0:01:52]} Qh5 {[%emt 0:00:06]} 31. Ne3 {[%emt 0:03:25]} Kg8 {[%emt 0:02:13]} 32. Rf1 {[%emt 0:00:30]} e5 {[%emt 0:00:57]} 33. Nf5 {[%emt 0:01:04]} exf4 {[%emt 0:01:07]} 34. gxf4 {[%emt 0:00:02]} gxf4 {[%emt 0:01:25]} 35. Qg2+ {[%emt 0:00:27]} Qg5 {[%emt 0:00:32]} 36. Qf2 {[%emt 0:00:54]} Kh8 {[%emt 0:00:33]} 37. Rg1 {[%emt 0:00:09]} Qg7 {[%emt 0:00:59]} *

[Event "WJCC U20 Girls 2019"]
[Site "New Delhi"]
[Date "2019.10.15"]
[Round "1.15"]
[White "Song, Yuxin"]
[Black "Punsalan, Vyanla M"]
[Result "1/2-1/2"]
[ECO "B27"]
[WhiteElo "2292"]
[BlackElo "1964"]
[Annotator "NA"]
[PlyCount "56"]
[EventDate "2019.10.15"]
[EventType "swiss"]
[EventCountry "IND"]
[SourceTitle "playchess.com"]
[Source "ChessBase"]
[SourceQuality "1"]
[TimeControl "40/5400+30:1800+30"]

1. e4 {[%emt 0:00:00]} c5 {[%emt 0:00:21]} 2. Nf3 {[%emt 0:00:00]} g6 {[%emt 0:00:15]} 3. c3 {[%emt 0:00:14]} Bg7 {[%emt 0:00:44]} 4. d4 {[%emt 0:00:12]} cxd4 {[%emt 0:02:03]} 5. cxd4 {[%emt 0:00:07]} d5 {[%emt 0:02:13]} 6. e5 {[%emt 0:00:10]} Bf5 {[%emt 0:00:43]} 7. Bb5+ {[%emt 0:02:20]} Nc6 {[%emt 0:03:06]} 8. Nc3 {[%emt 0:01:18]} a6 {[%emt 0:02:08]} 9. Bxc6+ {[%emt 0:01:46]} bxc6 {[%emt 0:00:26]} 10. O-O {[%emt 0:00:06]} e6 {[%emt 0:02:33]} 11. h3 {[%emt 0:00:17]} h6 12. Bg5 {[%emt 0:00:32]} f6 {[%emt 0:04:30]} 13. exf6 {[%emt 0:00:22]} Bxf6 {[%emt 0:01:00]} 14. Bxf6 {[%emt 0:01:49]} Qxf6 {[%emt 0:01:57]} 15. Ne5 {[%emt 0:05:07]} Ne7 {[%emt 0:03:36]} 16. Qa4 {[%emt 0:07:03]} O-O {[%emt 0:04:58]} 17. Nd7 {[%emt 0:02:21]} Qh4 {[%emt 0:01:25]} 18. Nxf8 {[%emt 0:02:14]} Rxf8 {[%emt 0:01:45]} 19. Qa3 {[%emt 0:01:05]} Bd3 {[%emt 0:07:15]} 20. Nxd5 {[%emt 0:00:27]} Nxd5 {[%emt 0:00:55]} 21. Qxd3 {[%emt 0:00:15]} Nf4 {[%emt 0:01:47]} 22. Qf3 {[%emt 0:02:48]} g5 {[%emt 0:08:07]} 23. Rae1 {[%emt 0:09:42]} g4 {[%emt 0:01:43]} 24. Qxc6 {[%emt 0:01:12]} gxh3 {[%emt 0:03:39]} 25. g3 {[%emt 0:00:08]} Qg4 {[%emt 0:00:25]} 26. Kh1 {[%emt 0:00:30]} Ne2 {[%emt 0:04:11]} 27. Rd1 {[%emt 0:20:37]} Kh8 {[%emt 0:04:23]} 28. Rd3 {[%emt 0:21:05]} Rxf2 {[%emt 0:11:51]} 1/2-1/2

[Event "WJCC U20 Girls 2019"]
[Site "New Delhi"]
[Date "2019.10.15"]
[Round "1.16"]
[White "Pandey Srishti"]
[Black "Li, Yunshan"]
[Result "0-1"]
[ECO "D10"]
[WhiteElo "1963"]
[BlackElo "2289"]
[Annotator "NA"]
[PlyCount "62"]
[EventDate "2019.10.15"]
[EventType "swiss"]
[EventCountry "IND"]
[SourceTitle "playchess.com"]
[Source "ChessBase"]
[SourceQuality "1"]
[TimeControl "40/5400+30:1800+30"]

1. d4 d5 2. c4 c6 3. cxd5 cxd5 4. Nc3 Nf6 5. Nf3 Nc6 6. Bf4 e6 7. e3 Bd6 8. Bxd6 Qxd6 9. Bd3 a6 10. O-O b5 11. e4 dxe4 12. Nxe4 Nxe4 13. Bxe4 Bb7 14. Rc1 O-O 15. Rc3 h6 16. Ne5 Rac8 17. Rg3 Nxe5 18. Bxb7 Rcd8 19. h4 Kh8 20. h5 Qb6 21. Qe2 Nd7 22. Qg4 Rg8 23. Qf3 Nf6 24. Rd1 Rd7 25. Bc6 Rxd4 26. Re1 Rc8 27. Be4 Nxe4 28. Qxf7 Nxg3 29. Rxe6 Qd8 30. fxg3 Rc1+ 31. Kh2 Rh4+ 0-1

[Event "WJCC U20 Girls 2019"]
[Site "New Delhi"]
[Date "2019.10.15"]
[Round "1.17"]
[White "Solozhenkina, Elizaveta"]
[Black "Meghna, C H"]
[Result "*"]
[ECO "C05"]
[WhiteElo "2283"]
[BlackElo "1956"]
[Annotator "NA"]
[PlyCount "50"]
[EventDate "2019.10.15"]
[EventType "swiss"]
[EventCountry "IND"]
[SourceTitle "playchess.com"]
[Source "ChessBase"]
[SourceQuality "1"]
[TimeControl "40/5400+30:1800+30"]

1. e4 e6 2. d4 d5 3. Nd2 Nf6 4. e5 Nfd7 5. Bd3 c6 6. c3 c5 7. Ne2 cxd4 8. cxd4 f6 9. exf6 Nxf6 10. O-O Bd6 11. Nf3 Qc7 12. Bg5 O-O 13. Qc2 h6 14. Bh4 Nh5 15. Bh7+ Kh8 16. Bg6 Rxf3 17. Bxh5 Bxh2+ 18. Kh1 Rf5 19. Bg4 Bd6 20. Bxf5 exf5 21. Rae1 Qf7 22. Bg3 Bb4 23. Rd1 g5 24. a3 Bf8 25. Bc7 f4 *

[Event "WJCC U20 Girls 2019"]
[Site "New Delhi"]
[Date "2019.10.15"]
[Round "1.17"]
[White "Solozhenkina, Elizaveta"]
[Black "Meghna, C H"]
[Result "1-0"]
[ECO "C06"]
[WhiteElo "2283"]
[BlackElo "1956"]
[Annotator "NA"]
[PlyCount "73"]
[EventDate "2019.10.15"]
[EventType "swiss"]
[EventCountry "IND"]
[SourceTitle "playchess.com"]
[Source "ChessBase"]
[SourceQuality "1"]
[TimeControl "40/5400+30:1800+30"]

1. e4 e6 2. d4 d5 3. Nd2 Nf6 4. e5 Nfd7 5. Bd3 c5 6. c3 Nc6 7. Ne2 cxd4 8. cxd4 f6 9. exf6 Nxf6 10. O-O Bd6 11. Nf3 Qc7 12. Bg5 O-O 13. Qc2 h6 14. Bh4 Nh5 15. Bh7+ Kh8 16. Bg6 Rxf3 17. Bxh5 Bxh2+ 18. Kh1 Rf5 19. Bg4 Bd6 20. Bxf5 exf5 21. Rae1 Qf7 22. Bg3 Bb4 23. Rd1 g5 24. a3 Bf8 25. Be5+ Nxe5 26. dxe5 f4 27. Nd4 Bg4 28. Rd3 Bg7 29. Re1 Re8 30. e6 Qg6 31. Qd2 Bxd4 32. Rxd4 Bxe6 33. Qb4 f3 34. gxf3 Qh5+ 35. Kg1 Qxf3 36. Re3 Qf7 37. Qd6 1-0

[Event "WJCC U20 Girls 2019"]
[Site "New Delhi"]
[Date "2019.10.15"]
[Round "1.18"]
[White "Savitha Shri B"]
[Black "Vantika Agrawal"]
[Result "1/2-1/2"]
[ECO "B30"]
[WhiteElo "1916"]
[BlackElo "2283"]
[Annotator "NA"]
[PlyCount "104"]
[EventDate "2019.10.15"]
[EventType "swiss"]
[EventCountry "IND"]
[SourceTitle "playchess.com"]
[Source "ChessBase"]
[SourceQuality "1"]
[TimeControl "40/5400+30:1800+30"]

1. e4 {[%emt 0:00:00]} c5 {[%emt 0:00:07]} 2. Nf3 {[%emt 0:00:00]} Nc6 {[%emt 0:00:44]} 3. Nc3 {[%emt 0:00:00]} e5 {[%emt 0:00:18]} 4. Bc4 {[%emt 0:00:00]} d6 {[%emt 0:00:18]} 5. d3 {[%emt 0:00:30]} Be7 {[%emt 0:00:06]} 6. O-O {[%emt 0:00:16]} Nf6 {[%emt 0:00:27]} 7. a4 {[%emt 0:01:40]} O-O {[%emt 0:00:28]} 8. h3 {[%emt 0:02:11]} a6 {[%emt 0:10:05]} 9. Bg5 {[%emt 0:06:35]} Rb8 {[%emt 0:12:09]} 10. Qd2 {[%emt 0:06:54]} Be6 {[%emt 0:15:35]} 11. Bxf6 {[%emt 0:08:03]} Bxf6 {[%emt 0:00:13]} 12. Nd5 {[%emt 0:00:21]} h6 {[%emt 0:06:24]} 13. c3 {[%emt 0:03:52]} b5 {[%emt 0:11:29]} 14. axb5 {[%emt 0:00:36]} axb5 {[%emt 0:00:04]} 15. Bb3 {[%emt 0:01:53]} Bxd5 {[%emt 0:01:05]} 16. Bxd5 {[%emt 0:00:09]} Ne7 {[%emt 0:00:16]} 17. Ba2 {[%emt 0:01:41]} d5 {[%emt 0:04:33]} 18. Qe2 {[%emt 0:10:42]} Qd6 {[%emt 0:02:36]} 19. exd5 {[%emt 0:04:58]} Nxd5 {[%emt 0:00:21]} 20. Bxd5 {[%emt 0:00:07]} Qxd5 {[%emt 0:00:05]} 21. Rfe1 {[%emt 0:02:34]} Rfe8 {[%emt 0:03:17]} 22. Qe4 {[%emt 0:00:54]} Qd7 {[%emt 0:03:06]} 23. Nh2 {[%emt 0:02:16]} g6 {[%emt 0:18:16]} 24. Ra6 {[%emt 0:03:11]} Bg7 {[%emt 0:00:32]} 25. Qe3 {[%emt 0:05:29]} c4 {[%emt 0:01:31]} 26. Rd1 {[%emt 0:05:29]} Red8 {[%emt 0:02:40]} 27. Ng4 {[%emt 0:00:54]} cxd3 {[%emt 0:00:32]} 28. Nxe5 {[%emt 0:04:11]} Bxe5 {[%emt 0:01:03]} 29. Qxe5 {[%emt 0:00:09]} d2 {[%emt 0:01:09]} 30. Qe3 {[%emt 0:00:58]} Qd5 {[%emt 0:01:38]} 31. Rf6 {[%emt 0:01:59]} b4 {[%emt 0:02:45]} 32. Rf4 {[%emt 0:15:39]} bxc3 {[%emt 0:00:19]} 33. bxc3 {[%emt 0:00:10]} Qa2 {[%emt 0:01:19]} 34. Rb4 {[%emt 0:05:56]} Rxb4 {[%emt 0:00:39]} 35. cxb4 {[%emt 0:00:06]} Qc4 {[%emt 0:00:41]} 36. b5 {[%emt 0:01:28]} Qc2 {[%emt 0:00:35]} 37. Qe2 {[%emt 0:00:06]} Qb2 {[%emt 0:00:31]} 38. b6 {[%emt 0:01:43]} h5 {[%emt 0:00:30]} 39. b7 {[%emt 0:00:30]} Qxb7 {[%emt 0:00:29]} 40. Rxd2 {[%emt 0:00:13]} Rc8 {[%emt 0:00:29]} 41. Rd1 {[%emt 0:31:19]} Qb3 {[%emt 0:10:39]} 42. Qd3 {[%emt 0:00:00]} Qb2 {[%emt 0:02:52]} 43. Qd4 {[%emt 0:00:00]} Qe2 {[%emt 0:05:20]} 44. Qd3 {[%emt 0:00:00]} Qxd3 {[%emt 0:05:08]} 45. Rxd3 {[%emt 0:00:00]} Rc4 {[%emt 0:00:10]} 46. g3 {[%emt 0:00:00]} h4 {[%emt 0:00:17]} 47. Kg2 {[%emt 0:00:00]} Kg7 {[%emt 0:00:14]} 48. Rd7 {[%emt 0:00:00]} g5 {[%emt 0:01:09]} 49. g4 {[%emt 0:00:00]} Rf4 {[%emt 0:00:39]} 50. Ra7 {[%emt 0:00:00]} Rb4 {[%emt 0:00:30]} 51. Rc7 {[%emt 0:00:00]} Rb5 {[%emt 0:00:33]} 52. Ra7 {[%emt 0:00:00]} Kf6 {[%emt 0:02:08]} 1/2-1/2

[Event "WJCC U20 Girls 2019"]
[Site "New Delhi"]
[Date "2019.10.15"]
[Round "1.19"]
[White "Yakubbaeva, Nilufar"]
[Black "Srimathi R"]
[Result "1-0"]
[ECO "E19"]
[WhiteElo "2281"]
[BlackElo "1914"]
[Annotator "NA"]
[PlyCount "67"]
[EventDate "2019.10.15"]
[EventType "swiss"]
[EventCountry "IND"]
[SourceTitle "playchess.com"]
[Source "ChessBase"]
[SourceQuality "1"]
[TimeControl "40/5400+30:1800+30"]

1. d4 {[%emt 0:00:00]} Nf6 {[%emt 0:00:05]} 2. Nf3 {[%emt 0:00:45]} e6 {[%emt 0:00:17]} 3. c4 {[%emt 0:01:07]} b6 {[%emt 0:00:09]} 4. g3 {[%emt 0:01:55]} Bb7 {[%emt 0:00:24]} 5. Bg2 {[%emt 0:00:14]} Be7 {[%emt 0:00:18]} 6. O-O {[%emt 0:00:23]} O-O {[%emt 0:00:07]} 7. Nc3 {[%emt 0:00:14]} Ne4 {[%emt 0:00:35]} 8. Qc2 {[%emt 0:04:43]} Nxc3 {[%emt 0:01:09]} 9. Qxc3 {[%emt 0:00:27]} d5 {[%emt 0:05:07]} 10. Bf4 {[%emt 0:08:12]} Bd6 {[%emt 0:06:56]} 11. Ne5 {[%emt 0:06:25]} f6 {[%emt 0:08:40]} 12. Nd3 {[%emt 0:01:28]} f5 {[%emt 0:01:00]} 13. Rac1 {[%emt 0:00:53]} c6 {[%emt 0:05:15]} 14. f3 {[%emt 0:06:14]} Na6 {[%emt 0:12:05]} 15. b4 {[%emt 0:05:25]} Rc8 {[%emt 0:03:18]} 16. c5 {[%emt 0:02:45]} Bc7 {[%emt 0:03:10]} 17. a4 {[%emt 0:04:48]} Nb8 {[%emt 0:04:09]} 18. Rfe1 {[%emt 0:07:21]} g5 {[%emt 0:08:26]} 19. Be5 {[%emt 0:07:11]} Nd7 {[%emt 0:03:57]} 20. Bxc7 {[%emt 0:02:37]} Qxc7 {[%emt 0:00:48]} 21. e4 {[%emt 0:01:05]} Ba6 {[%emt 0:07:05]} 22. exd5 {[%emt 0:04:03]} exd5 {[%emt 0:00:24]} 23. b5 {[%emt 0:01:36]} Bb7 {[%emt 0:05:29]} 24. Re7 {[%emt 0:04:35]} Qd8 {[%emt 0:03:29]} 25. Rce1 {[%emt 0:00:39]} Rf7 {[%emt 0:01:39]} 26. Rxf7 {[%emt 0:03:22]} Kxf7 {[%emt 0:00:08]} 27. Bh3 {[%emt 0:01:51]} Kf6 {[%emt 0:04:10]} 28. Ne5 {[%emt 0:00:47]} Nxe5 {[%emt 0:02:42]} 29. Rxe5 {[%emt 0:00:08]} h6 {[%emt 0:01:05]} 30. Qd3 {[%emt 0:00:15]} Kg7 {[%emt 0:00:14]} 31. Qxf5 {[%emt 0:00:32]} cxb5 {[%emt 0:01:45]} 32. Re6 {[%emt 0:00:28]} Qf8 {[%emt 0:00:46]} 33. Qe5+ {[%emt 0:00:31]} Kg8 {[%emt 0:00:17]} 34. Bf5 {[%emt 0:00:22]} 1-0

[Event "WJCC U20 Girls 2019"]
[Site "New Delhi"]
[Date "2019.10.15"]
[Round "1.21"]
[White "Arpita, Mukherjee"]
[Black "Mungunzul, Bat-Erdene"]
[Result "1-0"]
[ECO "C77"]
[WhiteElo "2271"]
[BlackElo "1912"]
[Annotator "NA"]
[PlyCount "89"]
[EventDate "2019.10.15"]
[EventType "swiss"]
[EventCountry "IND"]
[SourceTitle "playchess.com"]
[Source "ChessBase"]
[SourceQuality "1"]
[TimeControl "40/5400+30:1800+30"]

1. e4 {[%emt 0:00:10]} e5 {[%emt 0:00:00]} 2. Nf3 {[%emt 0:00:09]} Nc6 {[%emt 0:00:00]} 3. Bb5 {[%emt 0:00:07]} a6 {[%emt 0:00:02]} 4. Ba4 {[%emt 0:00:13]} Nf6 {[%emt 0:00:13]} 5. d3 {[%emt 0:00:11]} b5 {[%emt 0:01:03]} 6. Bb3 {[%emt 0:00:11]} Bc5 {[%emt 0:00:23]} 7. c3 {[%emt 0:00:41]} d6 {[%emt 0:00:29]} 8. O-O {[%emt 0:00:14]} h6 {[%emt 0:00:20]} 9. Nbd2 {[%emt 0:01:02]} O-O {[%emt 0:00:40]} 10. Re1 {[%emt 0:02:30]} Bb6 {[%emt 0:06:11]} 11. Nf1 {[%emt 0:00:50]} Ne7 {[%emt 0:01:43]} 12. Ng3 {[%emt 0:00:24]} c5 {[%emt 0:03:09]} 13. a4 {[%emt 0:03:09]} Rb8 {[%emt 0:02:32]} 14. Nh4 {[%emt 0:05:56]} Bg4 {[%emt 0:08:12]} 15. Qc2 {[%emt 0:04:23]} Qd7 {[%emt 0:03:14]} 16. Be3 {[%emt 0:14:16]} g5 {[%emt 0:08:32]} 17. Nf3 {[%emt 0:05:06]} Bxf3 {[%emt 0:00:29]} 18. gxf3 {[%emt 0:00:02]} Qh3 {[%emt 0:00:31]} 19. Qe2 {[%emt 0:00:52]} Ng6 {[%emt 0:13:40]} 20. Qf1 {[%emt 0:08:01]} Qxf1+ {[%emt 0:00:21]} 21. Kxf1 {[%emt 0:00:30]} Nh4 {[%emt 0:00:09]} 22. a5 {[%emt 0:05:25]} Bc7 {[%emt 0:08:08]} 23. Bd1 {[%emt 0:02:10]} Ne8 {[%emt 0:05:41]} 24. b4 {[%emt 0:05:07]} cxb4 {[%emt 0:09:53]} 25. cxb4 {[%emt 0:01:01]} Ra8 {[%emt 0:00:13]} 26. Ke2 {[%emt 0:04:35]} Bb8 {[%emt 0:07:30]} 27. Bb3 {[%emt 0:00:44]} Nf6 {[%emt 0:00:11]} 28. Rec1 {[%emt 0:01:01]} Rd8 {[%emt 0:04:25]} 29. Rc6 {[%emt 0:04:15]} Kf8 {[%emt 0:02:58]} 30. Rac1 {[%emt 0:02:32]} Ke7 {[%emt 0:02:20]} 31. Bb6 {[%emt 0:01:23]} Ba7 {[%emt 0:09:04]} 32. Bxd8+ {[%emt 0:00:26]} Rxd8 {[%emt 0:00:08]} 33. Rxa6 {[%emt 0:02:04]} Rd7 {[%emt 0:00:43]} 34. h3 {[%emt 0:02:24]} Ne8 {[%emt 0:00:42]} 35. Rc8 {[%emt 0:02:47]} Bd4 {[%emt 0:00:58]} 36. Raa8 {[%emt 0:00:51]} Ng7 {[%emt 0:00:41]} 37. a6 {[%emt 0:01:34]} Ng6 {[%emt 0:00:53]} 38. Rab8 {[%emt 0:01:34]} Nf4+ {[%emt 0:00:23]} 39. Kd2 {[%emt 0:00:11]} Bxf2 {[%emt 0:00:46]} 40. Rb7 {[%emt 0:00:46]} Nxh3 {[%emt 0:00:26]} 41. Rcc7 {[%emt 0:30:19]} Rxc7 {[%emt 0:31:27]} 42. Rxc7+ {[%emt 0:00:13]} Kf6 {[%emt 0:00:04]} 43. Rxf7+ {[%emt 0:00:20]} Kg6 {[%emt 0:00:06]} 44. d4 {[%emt 0:00:25]} Bxd4 {[%emt 0:00:25]} 45. Rxg7+ {[%emt 0:00:16]} 1-0

[Event "WJCC U20 Girls 2019"]
[Site "New Delhi"]
[Date "2019.10.15"]
[Round "1.23"]
[White "Protopopova, Anastasiya"]
[Black "Ananya, Suresh"]
[Result "1-0"]
[ECO "E73"]
[WhiteElo "2263"]
[BlackElo "1896"]
[Annotator "NA"]
[PlyCount "79"]
[EventDate "2019.10.15"]
[EventType "swiss"]
[EventCountry "IND"]
[SourceTitle "playchess.com"]
[Source "ChessBase"]
[SourceQuality "1"]
[TimeControl "40/5400+30:1800+30"]

1. d4 {[%emt 0:00:00]} Nf6 {[%emt 0:00:00]} 2. c4 {[%emt 0:00:00]} g6 {[%emt 0:00:00]} 3. Nc3 {[%emt 0:00:00]} Bg7 {[%emt 0:00:09]} 4. e4 {[%emt 0:00:02]} d6 {[%emt 0:00:07]} 5. Be2 {[%emt 0:00:15]} O-O {[%emt 0:00:14]} 6. Bg5 {[%emt 0:00:05]} Nbd7 {[%emt 0:02:14]} 7. Qd2 {[%emt 0:00:34]} c5 {[%emt 0:00:51]} 8. d5 {[%emt 0:00:30]} a6 {[%emt 0:01:14]} 9. Nf3 {[%emt 0:02:12]} Rb8 {[%emt 0:00:54]} 10. a4 {[%emt 0:00:38]} b6 {[%emt 0:04:39]} 11. h3 {[%emt 0:01:48]} Re8 {[%emt 0:07:14]} 12. O-O {[%emt 0:04:41]} Nf8 {[%emt 0:02:58]} 13. e5 {[%emt 0:18:40]} dxe5 {[%emt 0:05:54]} 14. Nxe5 {[%emt 0:00:45]} Ne4 {[%emt 0:05:32]} 15. Qf4 {[%emt 0:12:43]} Nxg5 {[%emt 0:01:31]} 16. Nc6 {[%emt 0:01:32]} Nxh3+ {[%emt 0:02:54]} 17. gxh3 {[%emt 0:00:15]} Qd6 {[%emt 0:00:12]} 18. Qxd6 {[%emt 0:04:06]} exd6 {[%emt 0:00:02]} 19. Nxb8 {[%emt 0:00:24]} Bxc3 {[%emt 0:00:34]} 20. bxc3 {[%emt 0:00:14]} Bxh3 {[%emt 0:02:10]} 21. Nxa6 {[%emt 0:05:04]} Rxe2 {[%emt 0:00:05]} 22. Rfe1 {[%emt 0:00:46]} Bg4 {[%emt 0:03:36]} 23. Nc7 {[%emt 0:06:44]} Nd7 {[%emt 0:01:09]} 24. Nb5 {[%emt 0:05:23]} Rxe1+ {[%emt 0:02:44]} 25. Rxe1 {[%emt 0:00:05]} Ne5 {[%emt 0:00:08]} 26. Re3 {[%emt 0:07:13]} Nxc4 {[%emt 0:07:13]} 27. Re4 {[%emt 0:02:52]} Ne5 {[%emt 0:00:03]} 28. Nxd6 {[%emt 0:00:40]} f6 {[%emt 0:00:03]} 29. f4 {[%emt 0:03:03]} Nd3 {[%emt 0:02:57]} 30. Re8+ {[%emt 0:03:42]} Kg7 {[%emt 0:00:15]} 31. Re7+ {[%emt 0:01:56]} Kh6 {[%emt 0:01:31]} 32. Nf7+ {[%emt 0:03:07]} Kh5 {[%emt 0:00:21]} 33. Ne5 {[%emt 0:02:28]} Nxf4 {[%emt 0:00:14]} 34. Rxh7+ {[%emt 0:00:14]} Kg5 {[%emt 0:00:22]} 35. Nxg4 {[%emt 0:01:32]} Nxd5 {[%emt 0:01:16]} 36. c4 {[%emt 0:00:16]} Nc3 {[%emt 0:00:39]} 37. Ne3 {[%emt 0:00:28]} Nxa4 {[%emt 0:00:36]} 38. Nd1 {[%emt 0:00:23]} b5 {[%emt 0:02:50]} 39. cxb5 {[%emt 0:00:10]} c4 {[%emt 0:00:09]} 40. Rc7 {[%emt 0:00:23]} 1-0

[Event "WJCC U20 Girls 2019"]
[Site "New Delhi"]
[Date "2019.10.15"]
[Round "1.24"]
[White "Levitan, Ronit"]
[Black "Priyanka Nutakki"]
[Result "0-1"]
[ECO "C07"]
[WhiteElo "1893"]
[BlackElo "2248"]
[Annotator "NA"]
[PlyCount "47"]
[EventDate "2019.10.15"]
[EventType "swiss"]
[EventCountry "IND"]
[SourceTitle "playchess.com"]
[Source "ChessBase"]
[SourceQuality "1"]
[TimeControl "40/5400+30:1800+30"]

1. e4 e6 {[%emt 0:00:00]} 2. d4 {[%emt 0:00:15]} d5 3. Nd2 {[%emt 0:00:06]} c5 {[%emt 0:00:29]} 4. exd5 {[%emt 0:00:24]} Qxd5 {[%emt 0:00:00]} 5. Ngf3 {[%emt 0:00:19]} cxd4 {[%emt 0:00:30]} 6. Bc4 {[%emt 0:00:29]} Qd6 {[%emt 0:00:14]} 7. O-O {[%emt 0:00:56]} Nc6 {[%emt 0:00:22]} 8. Nb3 {[%emt 0:00:35]} a6 {[%emt 0:00:08]} 9. Nbxd4 {[%emt 0:00:59]} Nxd4 {[%emt 0:00:12]} 10. Nxd4 {[%emt 0:00:10]} Qc7 {[%emt 0:00:08]} 11. Bb3 {[%emt 0:00:36]} Bd6 {[%emt 0:00:51]} 12. Nf3 {[%emt 0:36:06]} Ne7 {[%emt 0:05:54]} 13. c3 {[%emt 0:01:34]} Bd7 {[%emt 0:05:03]} 14. Re1 {[%emt 0:04:04]} O-O-O {[%emt 0:09:47]} 15. Qe2 {[%emt 0:06:24]} Ng6 {[%emt 0:09:30]} 16. Bc2 {[%emt 0:00:30]} Bb5 {[%emt 0:03:32]} 17. Qe4 {[%emt 0:03:26]} Bc6 {[%emt 0:01:48]} 18. Qe2 {[%emt 0:01:26]} Bxf3 {[%emt 0:01:55]} 19. Qxf3 {[%emt 0:00:09]} Bxh2+ {[%emt 0:00:12]} 20. Kh1 {[%emt 0:00:56]} Bf4 {[%emt 0:03:48]} 21. Be4 {[%emt 0:07:44]} Bxc1 {[%emt 0:04:16]} 22. Raxc1 {[%emt 0:03:28]} Rd2 {[%emt 0:02:52]} 23. Rc2 {[%emt 0:16:26]} Rhd8 {[%emt 0:03:31]} 24. b4 {[%emt 0:11:35]} 0-1